fUSD/lending_fUSD_20250612
["ID","MTS","AMOUNT","RATE_DAILY","PERIOD"]
[365483120,1749699076220,-1705.288627,0.00019506,2]
[365483121,1749699076230,-1705.288627,0.00019506,2]
[365483122,1749699076239,-490.0,0.00019506,2]
[365483123,1749699076248,-490.0,0.00019506,2]
[365483124,1749699076258,-490.0,0.00019506,2]
[365483125,1749699076268,-1510.71,0.00019506,2]
[365483126,1749699076279,-490.0,0.00019506,2]
[365483127,1749699076293,-1449.766364,0.00019506,2]
[365483128,1749699076303,-1705.288627,0.00019506,2]
[365483129,1749699076313,-1449.766364,0.00019506,2]
[365483130,1749699076323,-1705.288627,0.00019506,2]
[365483131,1749699076334,-1449.766364,0.00019506,2]
[365483132,1749699076344,-1449.766364,0.00019506,2]
[365483133,1749699076354,-532.01691309,0.00019506,2]
[365483134,1749699076364,-826.43,0.00019506,2]
[365483135,1749699076374,-490.0,0.00019506,2]
[365483136,1749699076383,-490.0,0.00019506,2]
[365483137,1749699076394,-490.0,0.00019506,2]
[365483138,1749699076404,-638.73,0.00019506,2]
[365483139,1749699076414,-1295.73,0.00019506,2]
[365483140,1749699076424,-458.883496,0.00019506,2]
[365483141,1749699076434,-1075.6,0.00019506,2]
[365483142,1749699076443,-458.883496,0.00019506,2]
[365483143,1749699076453,-490.0,0.00019506,2]
[365483144,1749699076464,-2461.98,0.00019506,2]
[365483145,1749699076473,-458.883496,0.00019506,2]
[365483146,1749699076483,-458.883496,0.00019506,2]
[365483147,1749699076493,-1273.72,0.00019506,2]
[365483148,1749699076503,-808.96,0.00019506,2]
[365483149,1749699076513,-490.0,0.00019506,2]
[365483150,1749699076523,-151.0,0.00019506,2]
[365483151,1749699076532,-151.0,0.00019506,2]
[365483152,1749699076542,-151.0,0.00019506,2]
[365483153,1749699076552,-490.0,0.00019506,2]
[365483154,1749699076562,-151.0,0.00019506,2]
[365483155,1749699076571,-219.237401,0.00019506,2]
[365483156,1749699076580,-490.0,0.00019506,2]
[365483157,1749699076592,-749.1,0.00019506,2]
[365483158,1749699076603,-1228.67,0.00019506,2]
[365483159,1749699076612,-976.86,0.00019506,2]
[365483160,1749699076622,-806.53,0.00019506,2]
[365483161,1749699076631,-1000.0,0.00019506,2]
[365483162,1749699076640,-1208.74,0.00019506,2]
[365483163,1749699076650,-193.397753,0.00019506,2]
[365483164,1749699076659,-193.397753,0.00019506,2]
[365483165,1749699076669,-193.397753,0.00019506,2]
[365483166,1749699076679,-193.397753,0.00019506,2]
[365483167,1749699076688,-193.397753,0.00019506,2]
[365483168,1749699076699,-193.397753,0.00019506,2]
[365483169,1749699076709,-490.0,0.00019506,2]
[365483170,1749699076719,-153.135014,0.00019506,2]
[365483171,1749699076728,-482.41624091,0.00019506,2]
[365483172,1749699076738,-490.0,0.00019506,2]
[365483173,1749699076747,-490.0,0.00019506,2]
[365483174,1749699076757,-1244.12,0.00019506,2]
[365483175,1749699076767,-1170.42,0.00019506,2]
[365483176,1749699076778,-636.35,0.00019506,2]
[365483177,1749699076787,-490.0,0.00019506,2]
[365483178,1749699076798,-490.0,0.00019506,2]
[365483179,1749699076807,-490.0,0.00019506,2]
[365483180,1749699076817,-490.0,0.00019506,2]
[365483181,1749699076827,-3741.15,0.00019506,2]
[365483182,1749699076839,-621.21700079,0.00019506,2]
[365483183,1749699076849,-2474.31,0.00019506,2]
[365483184,1749699076859,-1057.36,0.00019506,2]
[365483185,1749699076869,-567.48,0.00019506,2]
[365483186,1749699076879,-204.845513,0.00019506,2]
[365483187,1749699076888,-204.845513,0.00019506,2]
[365483188,1749699076898,-490.0,0.00019506,2]
[365483189,1749699076907,-1654.75,0.00019506,2]
[365483190,1749699076917,-688.11,0.00019506,2]
[365483191,1749699076927,-5015.99,0.00019506,2]
[365483192,1749699076936,-204.845513,0.00019506,2]
[365483193,1749699076946,-204.845513,0.00019506,2]
[365483194,1749699076955,-711.43,0.00019506,2]
[365483195,1749699076965,-490.0,0.00019506,2]
[365483196,1749699076975,-967.45,0.00019506,2]
[365483197,1749699076984,-288.188548,0.00019506,2]
[365483198,1749699076994,-288.188548,0.00019506,2]
[365483199,1749699077003,-2045.12,0.00019506,2]
[365483200,1749699077013,-452.74825242,0.00019506,2]
[365483201,1749699077022,-736.55,0.00019506,2]
[365483202,1749699077031,-288.188548,0.00019506,2]
[365483203,1749699077040,-288.188548,0.00019506,2]
[365483204,1749699077049,-1158.8,0.00019506,2]
[365483205,1749699077059,-1591.12,0.00019506,2]
[365483206,1749699077068,-11676.9,0.00019506,2]
[365483207,1749699077078,-464.79960883,0.00019506,2]
[365483208,1749699077090,-524.2438455,0.00019506,2]
[365483209,1749699077099,-490.0,0.00019506,2]
[365483210,1749699077109,-507.64,0.00019506,2]
[365483211,1749699077118,-490.0,0.00019506,2]
[365483212,1749699077128,-515.22139102,0.00019506,2]
[365483213,1749699077138,-490.0,0.00019506,2]
[365483214,1749699077148,-437.217976,0.00019506,2]
[365483215,1749699077157,-437.217976,0.00019506,2]
[365483216,1749699077166,-1076.37,0.00019506,2]
[365483217,1749699077175,-1057.12,0.00019506,2]
[365483218,1749699077185,-2656.58,0.00019506,2]
[365483219,1749699077195,-1114.9,0.00019506,2]
[365483220,1749699077204,-823.07,0.00019506,2]
[365483221,1749699077214,-490.0,0.00019506,2]
[365483222,1749699077224,-437.217976,0.00019506,2]
[365483223,1749699077233,-437.217976,0.00019506,2]
[365483224,1749699077242,-490.0,0.00019506,2]
[365483225,1749699077251,-2087.55,0.00019506,2]
[365483226,1749699077260,-490.0,0.00019506,2]
[365483227,1749699077270,-1881.8,0.00019506,2]
[365483228,1749699077283,-1018.35,0.00019506,2]
[365483229,1749699077293,-882.02,0.00019506,2]
[365483230,1749699077303,-490.0,0.00019506,2]
[365483231,1749699077313,-490.0,0.00019506,2]
[365483232,1749699077323,-1075.55,0.00019506,2]
[365483233,1749699077334,-490.0,0.00019506,2]
[365483234,1749699077344,-490.0,0.00019506,2]
[365483235,1749699077354,-2296.38,0.00019506,2]
[365483236,1749699077364,-151.0,0.00019506,2]
[365483237,1749699077374,-986.14,0.00019506,2]
[365483238,1749699077384,-151.0,0.00019506,2]
[365483239,1749699077393,-1208.54,0.00019506,2]
[365483240,1749699077403,-151.0,0.00019506,2]
[365483241,1749699077412,-1128.88,0.00019506,2]
[365483242,1749699077422,-1354.12,0.00019506,2]
[365483243,1749699077432,-490.0,0.00019506,2]
[365483244,1749699077441,-1582.34,0.00019506,2]
[365483245,1749699077450,-1357.51,0.00019506,2]
[365483246,1749699077460,-1390.91,0.00019506,2]
[365483247,1749699077469,-504.57542646,0.00019506,2]
[365483248,1749699077480,-6692.21,0.00019506,2]
[365483249,1749699077489,-1928.326089,0.00019506,2]
[365483250,1749699077499,-1928.326089,0.00019506,2]
[365483251,1749699077508,-1141.57,0.00019506,2]
[365483252,1749699077518,-1928.326089,0.00019506,2]
[365483253,1749699077527,-854.17,0.00019506,2]
[365483254,1749699077537,-292.695018,0.00019506,2]
[365483255,1749699077546,-292.695018,0.00019506,2]
[365483256,1749699077555,-2058.74,0.00019506,2]
[365483257,1749699077564,-877.93,0.00019506,2]
[365483258,1749699077573,-490.0,0.00019506,2]
[365483259,1749699077582,-1928.326089,0.00019506,2]
[365483260,1749699077594,-292.695018,0.00019506,2]
[365483261,1749699077603,-1928.326089,0.00019506,2]
[365483262,1749699077612,-1742.49,0.00019506,2]
[365483263,1749699077622,-292.695018,0.00019506,2]
[365483264,1749699077631,-1928.326089,0.00019506,2]
[365483265,1749699077640,-1222.45,0.00019506,2]
[365483266,1749699077649,-490.0,0.00019506,2]
[365483267,1749699077659,-3966.71,0.00019506,2]
[365483268,1749699077669,-490.0,0.00019506,2]
[365483269,1749699077679,-650.79,0.00019506,2]
[365483270,1749699077689,-490.0,0.00019506,2]
[365483271,1749699077698,-570.07,0.00019506,2]
[365483272,1749699077707,-490.0,0.00019506,2]
[365483273,1749699077717,-1094.5,0.00019506,2]
[365483274,1749699077727,-3947.13,0.00019506,2]
[365483275,1749699077736,-4605.88,0.00019506,2]
[365483276,1749699077745,-5952.66,0.00019506,2]
[365483277,1749699077755,-242.424713,0.00019506,2]
[365483278,1749699077764,-242.424713,0.00019506,2]
[365483279,1749699077773,-1000.0,0.00019506,2]
[365483280,1749699077783,-242.424713,0.00019506,2]
[365483281,1749699077792,-445.49377326,0.00019506,2]
[365483282,1749699077802,-525.1,0.00019506,2]
[365483283,1749699077811,-242.424713,0.00019506,2]
[365483284,1749699077821,-2854.7,0.00019506,2]
[365483285,1749699077831,-490.0,0.00019506,2]
[365483286,1749699077845,-242.424713,0.00019506,2]
[365483287,1749699077855,-242.424713,0.00019506,2]
[365483288,1749699077864,-535.8035736,0.00019506,2]
[365483289,1749699077874,-490.28674917,0.00019506,2]
[365483290,1749699077883,-490.0,0.00019506,2]
[365483291,1749699077893,-2863.69,0.00019506,2]
[365483292,1749699077903,-2653.63,0.00019506,2]
[365483293,1749699077912,-490.0,0.00019506,2]
[365483294,1749699077922,-940.43,0.00019506,2]
[365483295,1749699077932,-491.69,0.00019506,2]
[365483296,1749699078156,-490.0,0.00019506,2]
[365483297,1749699078168,-151.0,0.00019506,2]
[365483298,1749699078177,-151.0,0.00019506,2]
[365483299,1749699078187,-512.49,0.00019506,2]
[365483300,1749699078197,-151.0,0.00019506,2]
[365483301,1749699078207,-755.36,0.00019506,2]
[365483302,1749699078216,-1104.01,0.00019506,2]
[365483303,1749699078226,-490.0,0.00019506,2]
[365483304,1749699078236,-1111.2,0.00019506,2]
[365483305,1749699078245,-1572.15,0.00019506,2]
[365483306,1749699078256,-945.31,0.00019506,2]
[365483307,1749699078266,-3057.61,0.00019506,2]
[365483308,1749699078277,-2277.52,0.00019506,2]
[365483309,1749699078288,-270.296408,0.00019506,2]
[365483310,1749699078298,-270.296408,0.00019506,2]
[365483311,1749699078308,-270.296408,0.00019506,2]
[365483312,1749699078318,-699.15,0.00019506,2]
[365483313,1749699078329,-3613.01,0.00019506,2]
[365483314,1749699078342,-716.79,0.00019506,2]
[365483315,1749699078352,-270.296408,0.00019506,2]
[365483316,1749699078363,-226.80415423,0.00019506,2]
[365483317,1749699078373,-270.296408,0.00019506,2]
[365483318,1749699078383,-270.296408,0.00019506,2]
[365483319,1749699078392,-490.0,0.00019506,2]
[365483320,1749699078402,-5826.75,0.00019506,2]
[365483321,1749699078411,-821.83,0.00019506,2]
[365483322,1749699078421,-691.02,0.00019506,2]
[365483323,1749699078431,-1247.94,0.00019506,2]
[365483324,1749699078440,-513.52,0.00019506,2]
[365483325,1749699078450,-151.0,0.00019506,2]
[365483326,1749699078460,-2242.09,0.00019506,2]
[365483327,1749699078470,-151.0,0.00019506,2]
[365483328,1749699078479,-850.37,0.00019506,2]
[365483329,1749699078489,-523.10238095,0.00019506,2]
[365483330,1749699078499,-151.0,0.00019506,2]
[365483331,1749699078508,-1449.99,0.00019506,2]
[365483332,1749699078518,-979.17,0.00019506,2]
[365483333,1749699078528,-547.13,0.00019506,2]
[365483334,1749699078538,-16236.4,0.00019506,2]
[365483335,1749699078548,-966.74,0.00019506,2]
[365483336,1749699078557,-241.49744134,0.00019506,2]
[365483337,1749699078566,-151.0,0.00019506,2]
[365483338,1749699078576,-151.0,0.00019506,2]
[365483339,1749699078586,-1483.42,0.00019506,2]
[365483340,1749699078595,-151.0,0.00019506,2]
[365483341,1749699078604,-219.74134403,0.00019506,2]
[365483342,1749699078652,-555.25865597,0.00019506,2]
[365483343,1749699078661,-1603.74134403,0.00019506,2]
[365483344,1749699078676,-0.18865597,0.00019506,2]
[365483345,1749699078686,-826.81,0.00019506,2]
[365483346,1749699078695,-241.516935,0.00019506,2]
[365483347,1749699078706,-523.0,0.00019506,2]
[365483348,1749699078715,-241.516935,0.00019506,2]
[365483349,1749699078725,-490.0,0.00019506,2]
[365483350,1749699078734,-241.516935,0.00019506,2]
[365483351,1749699078744,-490.0,0.00019506,2]
[365483352,1749699078754,-1514.71,0.00019506,2]
[365483353,1749699078764,-534.2077572,0.00019506,2]
[365483354,1749699078773,-241.516935,0.00019506,2]
[365483355,1749699078783,-241.516935,0.00019506,2]
[365483356,1749699078792,-227.88216293,0.00019506,2]
[365483357,1749699079129,-970.52783707,0.00019506,2]
[365483358,1749699079139,-241.516935,0.00019506,2]
[365483359,1749699079149,-2391.19,0.00019506,2]
[365483360,1749699079159,-1561.32,0.00019506,2]
[365483361,1749699079169,-1326.92,0.00019506,2]
[365483362,1749699079178,-512.04170565,0.00019506,2]
[365483363,1749699079188,-480.0,0.00019506,2]
[365483364,1749699079197,-963.52,0.00019506,2]
[365483365,1749699079207,-1172.22,0.00019506,2]
[365483366,1749699079217,-1611.07,0.00019506,2]
[365483367,1749699079227,-534.12,0.00019506,2]
[365483368,1749699079236,-965.06,0.00019506,2]
[365483369,1749699079247,-1613.61252439,0.00019506,2]
[365483370,1749699079591,-157.51726603,0.00019078,2]
[365483371,1749699079600,-153.7501655,0.00019085,2]
[365483372,1749699079609,-469.85188028,0.00019178,2]
[365483373,1749699079619,-490.0,0.00019178,2]
[365483374,1749699079628,-490.0,0.00019178,2]
[365483375,1749699079638,-490.0,0.00019178,2]
[365483376,1749699079647,-490.0,0.00019342,2]
[365483377,1749699079657,-925.74747561,0.00019506,2]
[365483378,1749699079666,-1733.13321258,0.00019506,2]
[365483379,1749699079678,-560.30000926,0.00019506,2]
[365483380,1749699079691,-43.28677816,0.00019506,2]
[365483381,1749699079700,-490.0,0.00019506,2]
[365483382,1749699079709,-490.0,0.00019506,2]
[365483383,1749699079719,-218.08620961,0.00019506,2]
[365483384,1749699079730,-271.91379039,0.00019506,2]
[365483385,1749699079739,-244.827504,0.00019506,2]
[365483386,1749699079748,-589.68,0.00019506,2]
[365483387,1749699079758,-490.0,0.00019506,2]
[365483388,1749699079767,-607.3136743,0.00019506,2]
[365483389,1749699079776,-489.39103233,0.00019506,2]
[365483390,1749699079785,-978.42,0.00019506,2]
[365483391,1749699079796,-490.73,0.00019506,2]
[365483392,1749699079805,-490.0,0.00019506,2]
[365483393,1749699079814,-102.74399898,0.00019506,2]
[365483394,1749699079828,-1677.32600102,0.00019506,2]
[365483395,1749699079837,-490.0,0.00019506,2]
[365483396,1749699079846,-151.0,0.00019506,2]
[365483397,1749699079856,-490.0,0.00019506,2]
[365483398,1749699079865,-151.0,0.00019506,2]
[365483399,1749699079874,-151.0,0.00019506,2]
[365483400,1749699079883,-2460.23,0.00019506,2]
[365483401,1749699079892,-490.0,0.00019506,2]
[365483402,1749699079901,-2306.85029342,0.00019506,2]
[365483403,1749699079913,-1925.52970658,0.00019506,2]
[365483404,1749699079922,-490.0,0.00019506,2]
[365483405,1749699079931,-490.0,0.00019506,2]
[365483406,1749699079940,-1315.59,0.00019506,2]
[365483407,1749699079949,-490.0,0.00019506,2]
[365483408,1749699079958,-609.48483178,0.00019506,2]
[365483409,1749699079968,-640.41,0.00019506,2]
[365483410,1749699079977,-547.78,0.00019506,2]
[365483411,1749699079986,-490.0,0.00019506,2]
[365483412,1749699079995,-579.69046164,0.00019506,2]
[365483415,1749699137338,500.0,0.00016384,2]
[365483417,1749699233037,492.64868854,0.00038126,120]
[365483419,1749699247456,2004.88,0.00038126,50]
[365483426,1749699274150,490.0,0.00038126,120]
[365483428,1749699409534,25305.04237053,0.0003813,60]
[365483438,1749699472052,1372.0,0.00038076,50]
[365483439,1749699472924,1372.0,0.00038076,50]
[365483440,1749699473316,1372.0,0.00038076,50]
[365483441,1749699473851,1372.0,0.00038076,50]
[365483442,1749699474004,1372.0,0.00038076,50]
[365483443,1749699474387,1372.0,0.00038076,50]
[365483444,1749699474720,1372.0,0.00038076,50]
[365483445,1749699475069,1372.0,0.00038076,50]
[365483446,1749699480867,1372.0,0.00038076,50]
[365483447,1749699481882,1372.0,0.00038076,50]
[365483448,1749699483706,646.38,0.00038076,60]
[365483449,1749699513824,500.0,1.04e-06,120]
[365483450,1749699526969,500.0,1.04e-06,120]
[365483451,1749699543521,500.0,1.04e-06,120]
[365483452,1749699556438,500.0,1.04e-06,120]
[365483453,1749699569247,500.0,1.04e-06,120]
[365483454,1749699580968,500.0,1.04e-06,120]
[365483455,1749699593204,500.0,1.04e-06,120]
[365483456,1749699602881,500.0,1.04e-06,120]
[365483457,1749699615904,500.0,1.04e-06,120]
[365483458,1749699627322,500.0,1.04e-06,120]
[365483459,1749699638450,500.0,1.04e-06,120]
[365483460,1749699651035,500.0,1.04e-06,120]
[365483461,1749699665993,3860.14822643,0.00038076,50]
[365483462,1749699666209,3860.14822643,0.00038076,50]
[365483463,1749699666374,3860.14822643,0.00038076,50]
[365483464,1749699673415,756.54183305,0.00038076,50]
[365483465,1749699673715,756.54183305,0.00038076,50]
[365483466,1749699673965,756.54183305,0.00038076,50]
[365483468,1749699690548,500.0,1.04e-06,120]
[365483469,1749699701401,500.0,1.04e-06,120]
[365483470,1749699712749,500.0,1.04e-06,120]
[365483471,1749699723342,500.0,1.04e-06,120]
[365483472,1749699735451,13858.28,0.00038076,50]
[365483474,1749699772364,500.0,1.04e-06,120]
[365483475,1749699784223,500.0,1.04e-06,120]
[365483477,1749699826967,500.0,0.00016384,2]
[365483478,1749699830860,500.0,1.04e-06,120]
[365483479,1749699842477,500.0,1.04e-06,120]
[365483480,1749699848303,3155.12163977,0.00038076,50]
[365483481,1749699848621,3155.12163977,0.00038076,50]
[365483482,1749699848941,3155.12163977,0.00038076,50]
[365483483,1749699851875,204.0,0.00017598,2]
[365483484,1749699852698,500.0,1.04e-06,120]
[365483485,1749699863635,500.0,1.04e-06,120]
[365483486,1749699873505,500.0,1.04e-06,120]
[365483487,1749699883823,500.0,1.04e-06,120]
[365483488,1749699899769,500.0,1.04e-06,120]
[365483490,1749699908685,3860.14822643,0.00038082,50]
[365483491,1749699909002,3860.14822643,0.00038082,50]
[365483492,1749699909390,3860.14822643,0.00038082,50]
[365483493,1749699909741,500.0,1.04e-06,120]
[365483494,1749699914787,151.0,0.00017247,2]
[365483495,1749699915032,151.0,0.00017247,2]
[365483496,1749699916390,1513.0836661,0.00038082,50]
[365483497,1749699916685,1513.0836661,0.00038082,50]
[365483498,1749699916966,1513.0836661,0.00038082,50]
[365483499,1749699921845,500.0,1.04e-06,120]
[365483500,1749699931214,151.0,0.00017244,2]
[365483501,1749699932542,500.0,1.04e-06,120]
[365483502,1749699943362,500.0,1.04e-06,120]
[365483503,1749699956125,500.0,1.04e-06,120]
[365483504,1749699966331,500.0,1.04e-06,120]
[365483505,1749699977244,500.0,1.04e-06,120]
[365483507,1749699987888,500.0,1.04e-06,120]
[365483508,1749699994757,1576.22495524,0.00038082,50]
[365483509,1749699997696,500.0,1.04e-06,120]
[365483510,1749700007804,500.0,1.04e-06,120]
[365483511,1749700039135,-250.0,0.00018052,2]
[365483512,1749700039157,-250.0,0.00018053,2]
[365483513,1749700039179,-300.0,0.00018053,2]
[365483514,1749700039203,-461.06,0.00018054,2]
[365483515,1749700039225,-150.0,0.00018066,7]
[365483516,1749700039247,-840.72506264,0.00018079,2]
[365483517,1749700047115,-159.27493736,0.00018079,2]
[365483518,1749700047142,-390.72,0.00018101,2]
[365483519,1749700047166,-151.0,0.00018345,2]
[365483520,1749700047190,-1057.06802137,0.00018345,2]
[365483521,1749700060408,205.82,0.00013699,2]
[365483524,1749700099816,490.0,0.00038082,120]
[365483532,1749700123745,162.4497408,0.00015,2]
[365483536,1749700216476,490.0,0.00038091,50]
[365483539,1749700232021,-202.0,0.00018294,2]
[365483540,1749700232031,-300.0,0.00018344,2]
[365483541,1749700232040,-781.99316942,0.00018344,2]
[365483542,1749700232095,-418.00683058,0.00018344,2]
[365483543,1749700232106,-34.94327974,0.00018344,2]
[365483544,1749700232213,-267.26672026,0.00018344,2]
[365483545,1749700232223,-159.57827974,0.00018344,2]
[365483546,1749700232235,-143.88172026,0.00018344,2]
[365483547,1749700232244,-699.40493484,0.00018345,2]
[365483548,1749700232256,-201.38304379,0.00018345,2]
[365483549,1749700232266,-500.0,0.00018345,2]
[365483550,1749700232275,-395.26949175,0.00018345,2]
[365483551,1749700232285,-668.65185757,0.00018345,2]
[365483552,1749700232294,-207.4,0.00018345,2]
[365483553,1749700232304,-250.0,0.0001835,2]
[365483554,1749700232313,-300.0,0.00018354,2]
[365483555,1749700232322,-6498.37,0.00018356,2]
[365483556,1749700232332,-963.93704689,0.00018356,2]
[365483557,1749700232342,-895.84151247,0.000184,2]
[365483558,1749700232351,-166.52,0.00018608,2]
[365483559,1749700232361,-219.42375279,0.000187,2]
[365483560,1749700232371,-394.05866027,0.000189,2]
[365483561,1749700232380,-302.89,0.00018906,2]
[365483562,1749700232390,-303.52,0.00018906,2]
[365483563,1749700232400,-425.0,0.00018912,2]
[365483564,1749700232409,-394.05866019,0.00018934,2]
[365483566,1749700232419,-167.68,0.00018955,2]
[365483567,1749700232429,-302.28,0.00018961,2]
[365483568,1749700232438,-305.63,0.00018961,2]
[365483569,1749700232448,-300.61,0.00018963,2]
[365483570,1749700232457,-301.72,0.00018963,2]
[365483571,1749700232468,-303.45,0.00018966,2]
[365483572,1749700232477,-394.05866019,0.00018969,2]
[365483573,1749700232487,-600.0,0.00018971,4]
[365483574,1749700232497,-302.64,0.00018978,2]
[365483575,1749700232506,-302.38,0.00018986,2]
[365483576,1749700232515,-303.9,0.00018986,2]
[365483577,1749700232525,-178.28891321,0.00019,2]
[365483578,1749700232537,-122.79108679,0.00019,2]
[365483579,1749700232546,-302.27,0.00019,2]
[365483580,1749700232557,-303.99,0.00019,2]
[365483582,1749700232569,-303.48,0.00019,2]
[365483584,1749700232578,-1000.0,0.00019,2]
[365483586,1749700232587,-394.05866019,0.00019003,2]
[365483588,1749700232596,-394.05866019,0.00019038,2]
[365483590,1749700232605,-394.05866019,0.00019072,2]
[365483592,1749700232615,-411.0,0.00019077,2]
[365483594,1749700232624,-1829.44566435,0.00019078,2]
[365483596,1749700232634,-706.10665404,0.00019078,2]
[365483599,1749700232645,-153.7501655,0.00019078,2]
[365483601,1749700232655,-158.61931812,0.00019078,2]
[365483604,1749700232664,-8831.082,0.00019078,2]
[365483607,1749700232673,-1685.3671,0.00019078,2]
[365483610,1749700232683,-394.05866019,0.00019107,2]
[365483612,1749700232692,-500.0,0.00019124,2]
[365483615,1749700232704,-394.05866019,0.00019141,2]
[365483617,1749700232715,-4486.22229915,0.00019143,2]
[365483619,1749700232724,-15949.52485361,0.00019167,2]
[365483621,1749700232736,-500.0,0.00019167,2]
[365483628,1749700232795,-782.67834552,0.00019167,2]
[365483632,1749700232829,-787.76461713,0.00019167,2]
[365483634,1749700232839,-286.22310964,0.00019169,2]
[365483636,1749700232850,-419.88354439,0.00019169,2]
[365483638,1749700232859,-1829.44566435,0.00019169,2]
[365483640,1749700232868,-500.0,0.00019172,2]
[365483642,1749700232877,-500.0,0.00019172,2]
[365483644,1749700232886,-500.0,0.00019172,2]
[365483646,1749700232895,-547.7231613,0.00019172,2]
[365483648,1749700232904,-383.94639467,0.00019172,2]
[365483650,1749700232913,-500.0,0.00019172,2]
[365483652,1749700232922,-600.0,0.00019172,2]
[365483654,1749700232931,-500.0,0.00019172,2]
[365483656,1749700232940,-500.0,0.00019172,2]
[365483657,1749700232950,-500.0,0.00019172,2]
[365483658,1749700232959,-500.0,0.00019172,2]
[365483659,1749700232971,-500.0,0.00019172,2]
[365483660,1749700232980,-500.0,0.00019172,2]
[365483661,1749700232991,-500.0,0.00019172,2]
[365483662,1749700233000,-500.0,0.00019172,2]
[365483663,1749700233010,-500.0,0.00019172,2]
[365483664,1749700233019,-411.59483167,0.00019172,2]
[365483665,1749700233029,-500.0,0.00019172,2]
[365483666,1749700233038,-500.0,0.00019172,2]
[365483667,1749700233048,-500.0,0.00019172,2]
[365483668,1749700233057,-500.0,0.00019172,2]
[365483669,1749700233067,-500.0,0.00019172,2]
[365483670,1749700233076,-500.0,0.00019172,2]
[365483671,1749700233086,-500.0,0.00019172,2]
[365483672,1749700233096,-500.0,0.00019172,2]
[365483673,1749700233106,-500.0,0.00019173,2]
[365483674,1749700233115,-500.0,0.00019173,2]
[365483676,1749700233125,-500.0,0.00019173,2]
[365483678,1749700233135,-500.0,0.00019173,2]
[365483680,1749700233144,-835.15920933,0.00019174,2]
[365483682,1749700233154,-394.05866019,0.00019176,2]
[365483684,1749700233164,-2296.16121475,0.00019176,2]
[365483686,1749700233176,-1249.85253375,0.00019176,2]
[365483688,1749700233188,-987.38153998,0.00019176,2]
[365483690,1749700233200,-690.22759958,0.00019176,2]
[365483693,1749700233223,-500.0,0.00019172,2]
[365483695,1749700233233,-500.0,0.00019172,2]
[365483697,1749700233243,-9563.95354518,0.00019176,2]
[365483699,1749700233255,-3570.53482924,0.00019176,2]
[365483701,1749700233265,-304.82,0.00019177,2]
[365483703,1749700233274,-304.84,0.00019177,2]
[365483707,1749700233297,-155.727,0.00019177,2]
[365483709,1749700233309,-173.54066731,0.00019177,2]
[365483711,1749700233319,-180.39422753,0.00019177,2]
[365483713,1749700233329,-281.66628486,0.00019177,2]
[365483715,1749700233339,-1504.752814,0.00019178,2]
[365483717,1749700233351,-554.54133792,0.00019178,2]
[365483719,1749700233362,-490.82224027,0.00019178,2]
[365483721,1749700233372,-506.91050122,0.00019178,2]
[365483723,1749700233382,-490.0,0.00019178,2]
[365483725,1749700233392,-2022.025586,0.00019178,2]
[365483727,1749700233402,-160.484491,0.00019178,2]
[365483729,1749700233412,-196.44208,0.00019178,2]
[365483731,1749700233422,-490.0,0.00019178,2]
[365483733,1749700233433,-490.0,0.00019178,2]
[365483735,1749700233444,-490.0,0.00019178,2]